[Event "26th Womens ECCC 2022"]
[Site "Mayrhofen"]
[Date "2022.10.09"]
[Round "7.27"]
[White "Peglau, Mirjam"]
[Black "Drljevic, Ljilja"]
[Result "1-0"]
[ECO "B06"]
[WhiteElo "1886"]
[BlackElo "2172"]
[Annotator "TA"]
[PlyCount "134"]
[EventDate "2022.10.03"]
[EventType "team-tourn"]
[EventCountry "AUT"]
[SourceTitle "playchess.com"]
[Source "ChessBase"]
[SourceQuality "1"]
[TimeControl "40/5400+30:1800+30"]

{[%evp 9,134,53,64,46,56,28,33,36,68,50,93,89,98,72,139,124,209,82,77,53,85,76,157,129,152,74,90,86,100,76,83,83,86,0,0,0,14,0,0,-50,-44,-35,-30,-43,-18,-22,-24,-45,-31,-52,0,0,0,-10,0,-14,0,0,0,-39,-30,-37,0,-115,0,-218,0,-211,-191,-325,-339,-412,-158,-143,-126,-125,-130,-266,-295,-439,-394,-389,-373,-791,-440,-398,-479,-471,-471,-463,-459,-454,-434,-460,-478,-376,-254,-237,-220,-522,-492,-508,-478,-1010,-1111,-866,-778,-993,-936,-5864,-5175,-2369,-1371,-2031,-1869,-29982,-29983,-29984,-29983,-29983,-29984,-29986,-29982,-29983,-4960,-29985,-29986]} 1. e4 {[%emt 0:00:02]} g6 {[%emt 0:02:21]} 2. d4 {[%emt 0:00:32]} Bg7 {[%emt 0:00:41]} 3. Be3 {[%emt 0:00:22]} a6 {[%emt 0:03:56]} 4. c4 {[%emt 0:05:25]} d6 {[%emt 0:02:37]} 5. Nc3 {[%emt 0:00:19]} Nd7 {[%emt 0:01:44]} 6. Rc1 {[%emt 0:03:24] White is more active. B06: Modern Defence.} Ngf6 {[%emt 0:06:09]} 7. f3 {[%emt 0:02:11]} c6 {[%emt 0:01:01]} 8. Qd2 {[%emt 0:02:04] White is slightly better.} h5 {[%emt 0:02:48] [#]} 9. Nh3 $146 {[%emt 0:03:14]} ({Predecessor:} 9. Bd3 e5 10. Nge2 h4 11. Bg5 h3 12. g4 exd4 13. Nxd4 Ne5 14. O-O Qb6 15. Be2 Be6 {0-1 (36) Moller,A (2018)-Schiodt,N (2054) Copenhagen 2003}) 9... h4 {[%emt 0:04:08]} 10. Be2 {[%emt 0:09:48]} b5 {[%emt 0:12:15]} 11. b3 {[%emt 0:03:04]} Qa5 {[%emt 0:07:38]} ({Black should play} 11... bxc4 12. Bxc4 Nb6) 12. O-O $16 {[%emt 0:05:15]} b4 {[%emt 0:15:42]} (12... bxc4 $16 13. Bxc4 Nb6) 13. Nd1 {[%emt 0:03:35]} (13. Na4 $18 {and the rest is easy.}) 13... c5 {[%emt 0:01:54]} 14. Nhf2 {[%emt 0:03:24]} Qc7 {[%emt 0:03:30]} 15. Nb2 {[%emt 0:05:29]} Nb6 {[%emt 0:05:00]} ({Black should try} 15... cxd4 16. Bxd4 (16. Qxd4 Nc5 $14) 16... Bh6) 16. Rfd1 {[%emt 0:03:32]} Bb7 {[%emt 0:09:46]} 17. Qc2 {[%emt 0:06:16]} (17. e5 $142 Nfd7 18. dxc5 dxc5 19. e6 fxe6 20. Nbd3) 17... Nfd7 {[%emt 0:02:37]} 18. d5 {[%emt 0:07:49]} a5 {[%emt 0:03:15][%cal Oa5a4]} 19. f4 {[%emt 0:04:34]} a4 {[%emt 0:02:29]} 20. Nbd3 $1 {[%emt 0:03:14]} (20. Nxa4 Nxa4 21. bxa4 Nb6 $15) (20. bxa4 $6 O-O $11) 20... Bc8 {[%emt 0:05:08]} 21. f5 {[%emt 0:04:20]} (21. Bg4 $16) 21... gxf5 {[%emt 0:00:58]} 22. exf5 {[%emt 0:00:01]} Nf6 {[%emt 0:00:33]} 23. Nf4 {[%emt 0:01:19]} Nbd7 {[%emt 0:01:00]} 24. Ne4 {[%emt 0:06:52]} (24. bxa4 Qa7 25. Qd2 Qxa4 $17) (24. N4d3 $11) 24... axb3 $15 {[%emt 0:00:49]} 25. axb3 {[%emt 0:00:02]} Nxe4 {[%emt 0:00:31]} 26. Qxe4 {[%emt 0:00:01]} Ra3 {[%emt 0:02:39]} 27. Rb1 {[%emt 0:02:07]} Ra2 {[%emt 0:00:30]} 28. Rd2 {[%emt 0:02:01]} Nf6 {[%emt 0:00:36]} 29. Qd3 {[%emt 0:01:13]} Rxd2 {[%emt 0:00:13]} (29... Qa7 $15) 30. Bxd2 $11 {[%emt 0:00:02]} Nd7 {[%emt 0:01:30]} 31. Rf1 {[%emt 0:01:37]} Bd4+ {[%emt 0:00:48]} 32. Kh1 {[%emt 0:00:48][%cal Od2b4]} Ne5 {[%emt 0:00:36]} 33. Qe4 {[%emt 0:00:30]} Qa7 {[%emt 0:00:43]} 34. Nd3 {[%emt 0:01:52]} Qa2 {[%emt 0:00:45]} 35. Nxe5 {[%emt 0:01:07]} dxe5 {[%emt 0:00:27]} 36. Rd1 {[%emt 0:03:53]} (36. Qd3 $11 {remains equal.}) 36... f6 {[%emt 0:00:38]} (36... Qxb3 $17 {Strongly threatening ...h3.} 37. d6 Qa4 38. Bxb4 h3 39. Rxd4 cxd4 40. Qxe5 Qa1+ 41. Bd1 Qxd1+ 42. Be1 e6 $1 43. Qxh8+ Kd7 44. fxe6+ fxe6 45. Qg7+ Kxd6 46. Qg3+ (46. Qf8+ Ke5 $17) 46... e5) 37. Qf3 {[%emt 0:03:26]} (37. h3 $11 {and White has nothing to worry.}) 37... Bd7 $2 {[%emt 0:00:23]} ({Better is} 37... Qc2 $19 38. Bd3 Qxb3) 38. Qg4 $2 {[%emt 0:00:46] [#]} (38. h3 $11) 38... Kd8 $1 $19 {[%emt 0:00:39] Hoping for ...h3.} 39. Qg7 {[%emt 0:01:14]} (39. Qf3 $142) 39... Re8 {[%emt 0:00:12] Threatens to win with ...h3.} 40. d6 {[%emt 0:00:24]} exd6 $2 {[%emt 0:00:47]} (40... h3 $19 {has better winning chances. White must now prevent ...Bc6.} 41. Bf3 (41. dxe7+ $2 Kc7 $19) 41... Qxb3 42. dxe7+ Kc7) 41. Qxf6+ $17 {[%emt 0:30:15]} Kc7 {[%emt 0:30:29] ...h3 is the strong threat.} 42. Qxh4 {[%emt 0:02:22]} Bxf5 {[%emt 0:00:00]} ({Reject} 42... Qxb3 $6 43. f6 Rf8 44. Rf1 $11) 43. Qg5 {[%emt 0:00:00]} (43. Qh5 $17 Bd7 44. Qf7 Qxb3 45. Bg4) 43... Bd7 $19 {[%emt 0:00:00]} 44. Qg3 {[%emt 0:00:00]} (44. Qf6 {might work better.}) 44... e4 {[%emt 0:00:00]} 45. Bh5 {[%emt 0:00:00]} Re5 {[%emt 0:00:00]} 46. Bg5 {[%emt 0:02:33]} (46. Bf4 Rxh5 47. Bxd6+ Kb7 48. Qg8) 46... Qf2 {[%emt 0:01:39]} 47. Qxf2 {[%emt 0:01:04]} Bxf2 {[%emt 0:00:02]} 48. h4 {[%emt 0:00:09]} Bxh4 {[%emt 0:00:25]} 49. Bxh4 {[%emt 0:00:01] And now Be2 would win.} Rxh5 {[%emt 0:00:06][%mdl 4096] Endgame KRB-KRB} 50. g3 {[%emt 0:00:03]} Bg4 {[%emt 0:00:22]} 51. Re1 {[%emt 0:01:07]} d5 {[%emt 0:02:16]} 52. cxd5 {[%emt 0:01:15]} Rxd5 {[%emt 0:00:20]} 53. Kg1 {[%emt 0:00:23]} Bf3 {[%emt 0:00:24][%cal Oc5c4]} 54. Re3 $2 {[%emt 0:00:21]} (54. Be7 {is more resistant.}) 54... Rd2 {[%emt 0:00:30]} 55. Kf1 {[%emt 0:00:28]} Kc6 {[%emt 0:00:32]} 56. Ke1 {[%emt 0:00:17]} (56. Bg5 $142 Rg2 57. Bh6) 56... Rg2 {[%emt 0:00:24]} 57. Kf1 {[%emt 0:00:24]} Kd5 {[%emt 0:00:16] aiming for ...Kd4.} 58. Bf6 {[%emt 0:00:43]} Rxg3 {[%emt 0:00:35]} 59. Bh8 {[%emt 0:00:21]} Rg2 {[%emt 0:00:45]} 60. Bf6 {[%emt 0:00:04]} Rh2 {[%emt 0:00:46]} 61. Bg7 {[%emt 0:00:34]} c4 {[%emt 0:00:30] ( -> ...cxb3)} 62. bxc4+ {[%emt 0:00:09]} Kxc4 {[%emt 0:00:02]} 63. Bf6 {[%emt 0:00:09]} Rc2 {[%emt 0:00:51]} 64. Re1 {[%emt 0:01:33]} b3 {[%emt 0:00:35]} 65. Rb1 {[%emt 0:00:10]} Rh2 {[%emt 0:00:38]} 66. Rc1+ {[%emt 0:00:36]} Kb4 {[%emt 0:00:31]} (66... Kd5 $142 67. Re1 b2 68. Bxb2 Rxb2 69. Re3 Kd4 70. Ra3 e3 71. Kg1 Rg2+ 72. Kh1 Ra2+ 73. Kg1 Rxa3 74. Kh2 e2 75. Kh3 e1=Q 76. Kh2 Qh4+ 77. Kg1 Ra1#) 67. Rc8 {[%emt 0:01:07]} e3 {[%emt 0:00:31][%mdl 32768] What a bad dream for White.  Weighted Error Value: White=0.75/Black=0.43. Loss on time!?} 1-0

[Event "26th Womens ECCC 2022"]
[Site "Mayrhofen"]
[Date "2022.10.09"]
[Round "7.28"]
[White "Manova, Ivana"]
[Black "Peglau, Sarah"]
[Result "*"]
[WhiteElo "1876"]
[BlackElo "1794"]
[Annotator "NA RC COMBH"]
[PlyCount "87"]
[EventDate "2022.10.03"]
[EventType "team-tourn"]
[EventCountry "AUT"]
[SourceTitle "playchess.com"]
[Source "ChessBase"]
[SourceQuality "1"]
[TimeControl "40/5400+30:1800+30"]

1. e4 {[%emt 0:00:05]} c6 {[%emt 0:00:10]} 2. d4 {[%emt 0:00:14]} d5 {[%emt 0:00:06]} 3. e5 {[%emt 0:00:36]} Bf5 {[%emt 0:00:07]} 4. h4 {[%emt 0:00:23]} Qc7 {[%emt 0:00:20]} 5. h5 {[%emt 0:01:16]} h6 {[%emt 0:05:19]} 6. g4 {[%emt 0:01:30]} Be4 {[%emt 0:04:26]} 7. f3 {[%emt 0:04:36]} Bh7 {[%emt 0:00:06]} 8. Nc3 {[%emt 0:09:47]} e6 {[%emt 0:00:19]} 9. Bd3 {[%emt 0:03:16]} Bxd3 {[%emt 0:00:38]} 10. Qxd3 {[%emt 0:00:28]} Nd7 {[%emt 0:03:39]} 11. Be3 {[%emt 0:02:34]} Ne7 {[%emt 0:02:56]} 12. f4 {[%emt 0:03:07]} a6 {[%emt 0:02:03]} 13. Nf3 {[%emt 0:07:35]} c5 {[%emt 0:03:18]} 14. dxc5 {[%emt 0:12:54]} Nxc5 {[%emt 0:00:23]} 15. Qe2 {[%emt 0:00:28]} Nc6 {[%emt 0:02:07]} 16. Qf2 {[%emt 0:01:26]} Qa5 {[%emt 0:04:04]} 17. O-O {[%emt 0:02:12]} O-O-O {[%emt 0:07:59]} 18. a3 {[%emt 0:01:18]} Nd7 {[%emt 0:15:10]} 19. b4 {[%emt 0:01:20]} Qc7 {[%emt 0:00:22]} 20. Na4 {[%emt 0:01:51]} f6 {[%emt 0:07:33]} 21. exf6 {[%emt 0:06:11]} gxf6 {[%emt 0:00:21]} 22. Nb6+ {[%emt 0:00:50]} Kb8 {[%emt 0:00:07]} 23. Nxd7+ {[%emt 0:06:40]} Rxd7 {[%emt 0:00:31]} 24. Nh4 {[%emt 0:01:33]} d4 {[%emt 0:18:32]} 25. Bd2 {[%emt 0:06:04]} Ne7 {[%emt 0:00:18]} 26. Rac1 {[%emt 0:00:34]} Rg8 {[%emt 0:00:33]} 27. Qe2 {[%emt 0:00:28]} Nf5 {[%emt 0:06:14]} 28. Ng6 {[%emt 0:01:32]} Ng7 {[%emt 0:06:58]} 29. Kh2 {[%emt 0:02:54]} f5 {[%emt 0:02:27]} 30. Rfe1 {[%emt 0:02:00]} fxg4 {[%emt 0:01:04]} 31. Qxg4 {[%emt 0:00:20]} Qc6 {[%emt 0:04:52]} 32. Ne5 {[%emt 0:01:46]} Qd5 {[%emt 0:01:24]} 33. Nxd7+ {[%emt 0:01:01]} Qxd7 {[%emt 0:00:02]} 34. c3 {[%emt 0:04:02]} Qf7 {[%emt 0:01:14]} 35. Rg1 {[%emt 0:00:27]} d3 {[%emt 0:01:11]} 36. Rce1 {[%emt 0:02:24]} Bd6 {[%emt 0:00:51]} 37. Re4 {[%emt 0:00:57]} e5 {[%emt 0:00:28]} 38. fxe5 {[%emt 0:01:09]} Bc7 {[%emt 0:00:24]} 39. Rg2 {[%emt 0:05:12]} Qf6 {[%emt 0:00:38]} 40. Bf4 {[%emt 0:01:56]} Qc6 {[%emt 0:00:33]} 41. Bd2 {[%emt 0:31:18]} Qf6 {[%emt 0:01:45]} 42. Qg3 {[%emt 0:00:00]} Qf5 {[%emt 0:00:42]} 43. Qg4 {[%emt 0:00:00]} Bxe5+ {[%emt 0:04:01]} 44. Rxe5 {[%emt 0:00:00]} *

[Event "26th Womens ECCC 2022"]
[Site "Mayrhofen"]
[Date "2022.10.09"]
[Round "7.29"]
[White "Ptacnikova, Lenka"]
[Black "Mayrhuber, Nikola"]
[Result "1-0"]
[ECO "A45"]
[WhiteElo "2055"]
[BlackElo "2117"]
[Annotator "TA"]
[PlyCount "143"]
[EventDate "2022.10.03"]
[EventType "team-tourn"]
[EventCountry "AUT"]
[SourceTitle "playchess.com"]
[Source "ChessBase"]
[SourceQuality "1"]
[TimeControl "40/5400+30:1800+30"]

{[%evp 9,143,-14,-8,-2,0,-1,0,0,37,14,29,0,61,58,56,25,23,16,22,6,15,8,21,9,8,2,55,49,77,33,125,120,116,117,143,149,145,149,144,144,150,148,149,145,145,146,150,143,147,139,143,139,141,137,166,163,187,187,202,180,196,175,189,166,143,135,240,147,194,78,209,168,172,161,153,159,236,241,216,230,239,217,218,202,187,175,210,205,814,724,982,672,604,577,1008,985,827,776,4158,4125,3641,3641,5057,4845,4157,3710,3082,2420,1923,1415,1979,1834,29955,3558,29973,29974,29972,29972,29969,29971,29977,29976,29976,29977,29977,29978,29978,29979,29981,29982,29982,29983,29983,29984,29983,29984]} 1. d4 {[%emt 0:00:02]} Nf6 {[%emt 0:00:05]} 2. Nc3 {[%emt 0:00:19]} d5 {[%emt 0:03:43]} 3. Bf4 {[%emt 0:00:15]} e6 {[%emt 0:04:36]} 4. e3 {[%emt 0:01:04][%cal Be2e3,Be3e4][%mdl 32]} Bd6 {[%emt 0:01:31]} 5. Nf3 {[%emt 0:04:46]} O-O {[%emt 0:00:30]} 6. Bd3 {[%emt 0:09:40] D00: 1 d4 d5: Unusual lines.} b6 {[%emt 0:08:32]} 7. Bxd6 {[%emt 0:10:11]} Qxd6 {[%emt 0:00:23] [#]} 8. e4 $146 {[%emt 0:08:03] The position is equal.} ({Predecessor:} 8. O-O Ba6 9. Bxa6 Nxa6 10. Qe2 Nb8 11. Ne5 a6 12. a4 Nbd7 13. f4 Ne4 14. Nxd7 Qxd7 15. Nxe4 dxe4 {½-½ (15) Stella,A (2447)-Valsecchi,A (2338) Arco 2011}) 8... Qb4 {[%emt 0:09:52]} 9. a3 {[%emt 0:05:05]} Qe7 {[%emt 0:01:44]} (9... Qxb2 {is interesting.} 10. Na4 Qxa1 11. Qxa1 dxe4 12. Be2 Bd7) 10. O-O {[%emt 0:03:00]} Ba6 {[%emt 0:03:41]} (10... dxe4 $11 11. Nxe4 (11. Bxe4 Nxe4 12. Nxe4 Bb7 $11) 11... Nbd7) 11. Bxa6 $14 {[%emt 0:03:21]} (11. exd5 {feels hotter.} Bxd3 12. Qxd3 Nxd5 13. Nxd5 exd5 14. Rae1) 11... Nxa6 {[%emt 0:02:59]} 12. Qe2 {[%emt 0:00:47] Strongly threatening e5.} dxe4 {[%emt 0:04:31]} 13. Nxe4 {[%emt 0:05:59]} Nxe4 {[%emt 0:04:44]} 14. Qxe4 {[%emt 0:01:29] Hoping for Qb7.} c5 {[%emt 0:00:14]} 15. Rad1 $36 {[%emt 0:10:10][%cal Ba1d1,Bd1d4,Bd4b4][%mdl 2080] White is more active.} cxd4 {[%emt 0:01:42]} 16. Nxd4 {[%emt 0:00:16]} Nc5 {[%emt 0:00:18]} 17. Qf3 {[%emt 0:00:31]} Qg5 {[%emt 0:15:14]} (17... Qf6 $11) 18. Nc6 {[%emt 0:02:21]} a5 {[%emt 0:08:00]} 19. Rfe1 {[%emt 0:04:59]} a4 {[%emt 0:04:06]} (19... Qf6 $14) 20. Rd4 $1 $16 {[%emt 0:03:21]} Rae8 {[%emt 0:06:08]} 21. Rb4 {[%emt 0:04:12]} Qd2 {[%emt 0:02:31][%cal Rd2e1]} 22. Qd1 {[%emt 0:01:39]} Qd7 {[%emt 0:11:45]} 23. Qxd7 {[%emt 0:01:56]} (23. Rxb6 $2 Qc7 24. Rb4 Qxc6 $19) 23... Nxd7 {[%emt 0:00:06]} 24. Rd1 {[%emt 0:00:15]} Nb8 {[%emt 0:02:22]} 25. Nxb8 {[%emt 0:01:59] White is much more active.} (25. Rxb6 Nxc6 26. Rxc6 Rb8 $16) 25... Rxb8 {[%emt 0:00:05]} 26. Rxa4 {[%emt 0:00:07][%mdl 4096] Endgame KRR-KRR} Rfc8 {[%emt 0:00:39]} 27. c3 {[%emt 0:00:12]} Rb7 {[%emt 0:01:20] Prevents Rd7.} 28. Rad4 {[%emt 0:01:26] Rd8+ would kill now.} Kf8 {[%emt 0:00:21]} 29. Kf1 {[%emt 0:00:48]} Ke7 {[%emt 0:00:07]} 30. Ke2 {[%emt 0:00:05]} Rc5 {[%emt 0:00:42]} 31. a4 {[%emt 0:02:56]} e5 {[%emt 0:01:10]} 32. Rb4 {[%emt 0:01:24]} f5 {[%emt 0:00:44]} 33. f3 {[%emt 0:01:11]} h5 {[%emt 0:00:57]} 34. h4 {[%emt 0:02:28]} g6 {[%emt 0:01:07]} 35. Ke3 {[%emt 0:00:09]} Rb8 {[%emt 0:00:18]} 36. g4 {[%emt 0:02:24]} hxg4 {[%emt 0:00:54]} 37. fxg4 {[%emt 0:00:04]} Ke6 {[%emt 0:00:18]} (37... Rh8 $16) 38. Kf3 {[%emt 0:01:24]} Rcc8 {[%emt 0:00:31]} (38... b5 $16 {might work better.} 39. gxf5+ gxf5) 39. Rb5 {[%emt 0:00:23]} (39. Ke2 $18 {has better winning chances.}) 39... fxg4+ {[%emt 0:00:40] A mistake that costs the game.} (39... Rc4 $16 {keeps fighting.}) 40. Kxg4 $18 {[%emt 0:01:40]} Rc4+ {[%emt 0:00:05]} 41. Kg5 {[%emt 0:31:36]} Rxa4 {[%emt 0:01:47]} 42. Re1 {[%emt 0:00:00]} ({Don't go for} 42. Kxg6 $2 Rg4+ 43. Kh7 (43. Kh5 $2 Rg2 $19) 43... Rxh4+ 44. Kg7 Rhh8 45. Rxb6+ Rxb6 $19) 42... Kf7 {[%emt 0:06:42]} (42... Rh8 $16) 43. Rbxe5 {[%emt 0:00:00]} ({Weaker is} 43. Rexe5 Rh8 44. b4 Ra1 $11) 43... Ra5 {[%emt 0:02:17] [#]} 44. b4 $1 {[%emt 0:00:00]} Rxe5+ {[%emt 0:00:50]} 45. Rxe5 {[%emt 0:00:00] Black must now prevent Rb5. KR-KR} Rh8 {[%emt 0:01:03]} 46. Kg4 {[%emt 0:00:00] Inhibits Rh5.} Rc8 {[%emt 0:00:16]} 47. Re3 {[%emt 0:00:00]} Kf6 {[%emt 0:04:51]} 48. Rf3+ {[%emt 0:00:00]} Ke5 $2 {[%emt 0:01:35]} (48... Kg7 49. Kg5 Rd8) 49. Kg5 {[%emt 0:00:00]} Rc4 {[%emt 0:07:17]} 50. Re3+ {[%emt 0:00:00]} Kd5 {[%emt 0:00:21]} 51. Rg3 {[%emt 0:00:00] aiming for Rg4.} b5 {[%emt 0:03:28]} 52. Rg4 {[%emt 0:07:00] White threatens Rxc4 and mate.} Rc6 {[%emt 0:04:24]} 53. Kh6 {[%emt 0:01:01]} Rxc3 {[%emt 0:00:38]} 54. Kxg6 {[%emt 0:00:26] Threatens to win with h5.} Rc6+ {[%emt 0:01:03]} 55. Kg5 {[%emt 0:00:39]} Rc8 {[%emt 0:00:42]} 56. h5 {[%emt 0:00:30] Intending h6 and mate.} Rg8+ {[%emt 0:00:14]} 57. Kh4 {[%emt 0:00:34]} Rh8 {[%emt 0:00:11] [#]} 58. Rf4 $1 {[%emt 0:01:07]} Ke5 {[%emt 0:00:12]} 59. Rf1 {[%emt 0:03:43]} Kd4 {[%emt 0:00:04]} 60. Rc1 {[%emt 0:00:21] White wants to mate with Rc5.} Ke3 {[%emt 0:02:47]} 61. Rc5 {[%emt 0:00:23]} (61. Rc6 $142 Kd3 62. Rc5 Kd4 63. Kg5 Rg8+ 64. Kf6 Rb8 65. h6 Rb6+ 66. Kg5) 61... Kd4 {[%emt 0:00:26]} 62. Rxb5 {[%emt 0:00:16] White mates.} Kc4 {[%emt 0:00:07]} 63. Rb7 {[%emt 0:00:09]} Kd5 {[%emt 0:00:31]} 64. Rb6 {[%emt 0:00:16]} Kc4 {[%emt 0:00:45]} 65. h6 {[%emt 0:00:09][%cal Bh5h6,Bh6h7][%mdl 32]} Rh7 {[%emt 0:00:31]} 66. Kg5 {[%emt 0:00:08]} Rh8 {[%emt 0:00:17]} 67. Kg6 {[%emt 0:00:22]} Rg8+ {[%emt 0:00:06]} 68. Kf7 {[%emt 0:00:05]} Ra8 {[%emt 0:01:14]} 69. Rb7 {[%emt 0:00:09]} Ra1 {[%emt 0:00:31]} 70. h7 {[%emt 0:00:06]} Rh1 {[%emt 0:00:29]} 71. Kg8 {[%emt 0:00:05]} Rg1+ {[%emt 0:00:21]} 72. Rg7 {[%emt 0:00:05] Weighted Error Value: White=0.17 (very precise) /Black=0.39} 1-0

[Event "26th Womens ECCC 2022"]
[Site "Mayrhofen"]
[Date "2022.10.09"]
[Round "7.30"]
[White "Schloffer, Jasmin-Denise"]
[Black "Johannsdottir, Johanna Bjorg"]
[Result "0-1"]
[ECO "E46"]
[WhiteElo "2086"]
[BlackElo "1964"]
[Annotator "TA"]
[PlyCount "60"]
[EventDate "2022.10.03"]
[EventType "team-tourn"]
[EventCountry "AUT"]
[SourceTitle "playchess.com"]
[Source "ChessBase"]
[SourceQuality "1"]
[TimeControl "40/5400+30:1800+30"]

{[%evp 14,60,-5,-2,-7,-6,0,0,0,6,0,9,27,-21,0,-6,7,-31,34,22,37,11,55,17,18,17,15,0,15,7,93,-25,67,62,62,-34,-28,-32,-44,-48,-31,-376,-379,-1091,-1065,-1064,-1071,-1060,-1048]} 1. d4 {[%emt 0:00:03]} Nf6 {[%emt 0:00:04]} 2. c4 {[%emt 0:00:04]} e6 {[%emt 0:00:04]} 3. Nc3 {[%emt 0:00:03]} Bb4 {[%emt 0:00:04]} 4. e3 {[%emt 0:00:03]} O-O {[%emt 0:00:06]} 5. Nge2 {[%emt 0:00:04]} Re8 {[%emt 0:00:19]} 6. a3 {[%emt 0:00:07]} Bf8 {[%emt 0:00:03]} 7. d5 {[%emt 0:00:05]} exd5 {[%emt 0:02:28]} 8. cxd5 {[%emt 0:00:07]} a5 {[%emt 0:02:06] E46: Nimzo-Indian: Rubinstein: 4 e3 0-0 5 Ne2 without early Bd3.} 9. Ng3 {[%emt 0:03:53]} Na6 {[%emt 0:00:56]} 10. Be2 {[%emt 0:00:58]} Nc5 {[%emt 0:00:54] The position is equal.} 11. b3 {[%emt 0:01:25] [#]} g6 $146 {[%emt 0:02:44]} ({Predecessor:} 11... a4 12. b4 Nb3 13. Rb1 c5 14. b5 Nxc1 15. Qxc1 d6 16. O-O Nd7 17. Qc2 Nb6 {0-1 (42) Tregubov,P (2592)-Saric,I (2695) St Petersburg 2018}) 12. Bb2 {[%emt 0:06:14]} Bg7 {[%emt 0:00:17]} 13. Qc2 {[%emt 0:01:10]} (13. b4 {might be stronger.} Na6 14. Nb5) 13... d6 {[%emt 0:00:37]} (13... h5 $5 {[%cal Rh5h4]}) 14. O-O {[%emt 0:03:13]} h5 {[%emt 0:04:49]} 15. b4 {[%emt 0:03:16]} (15. Bb5 $5 {[%cal Rb5e8]}) 15... h4 {[%emt 0:02:42]} (15... Na6 $1 $15) 16. bxc5 $14 {[%emt 0:01:49] Strongly threatening Nh1.} hxg3 {[%emt 0:00:06]} 17. hxg3 {[%emt 0:01:11]} ({Of course not} 17. fxg3 dxc5 18. Nd1 Nxd5 19. Bxg7 Kxg7 20. Qxc5 c6 $15) 17... dxc5 {[%emt 0:00:14]} (17... Bf5 $5 {[%cal Rf5c2]} 18. Qb3 dxc5 $11) 18. Bf3 {[%emt 0:05:35]} (18. Rad1 $5 {[%cal Rc3b5]}) 18... Bf5 {[%emt 0:07:50]} 19. Qe2 {[%emt 0:02:30]} Qd7 {[%emt 0:05:33]} 20. Rfe1 {[%emt 0:02:37]} Rad8 {[%emt 0:03:11]} 21. Rad1 {[%emt 0:00:31]} b6 {[%emt 0:00:53] [#]} (21... g5 $11 22. Qc4 b6) 22. e4 {[%emt 0:05:16] [#]} (22. Nb5 $1 $16) 22... Bg4 {[%emt 0:04:29]} ({Black should play} 22... Nxe4 $1 $11 23. Nxe4 (23. Bxe4 Bxe4) 23... Bxe4 24. Bxe4 f5) 23. e5 {[%emt 0:05:46] Hoping for Qc4.} Qf5 $1 {[%emt 0:01:45]} 24. Qc4 {[%emt 0:13:50]} (24. Ba1 $14) 24... Bxf3 $15 {[%emt 0:03:37]} 25. gxf3 {[%emt 0:00:59]} Rxe5 {[%emt 0:01:39]} 26. Ne4 {[%emt 0:01:15]} Ree8 {[%emt 0:02:20][%cal Be5e8,Be8e4,Be4g4][%mdl 32]} 27. g4 $2 {[%emt 0:04:24][%mdl 8192] This move loses the game for White.} (27. Kg2 $1 $15 Nxe4 28. fxe4) 27... Qxf3 $19 {[%emt 0:01:27]} 28. Rd3 $2 {[%emt 0:05:00]} (28. Nxf6+ Bxf6 29. Bxf6 Rxe1+ 30. Rxe1 Qxf6 31. Qd3) 28... Qxg4+ {[%emt 0:01:48] Black is clearly winning.} 29. Rg3 {[%emt 0:00:04]} Rxe4 {[%emt 0:00:46]} 30. Rxg4 {[%emt 0:01:37]} Rxg4+ {[%emt 0:00:05] Weighted Error Value: White=0.74/Black=0.19 (very precise)} 0-1